[Event "*** Titled Tuesday Blitz"]
[Site "Chess.com"]
[Date "2020.10.20"]
[Round "2"]
[White "killer311"]
[Black "Vandros57"]
[Result "1-0"]
[WhiteElo "2424"]
[BlackElo "2198"]
[TimeControl "180+1"]
[EndTime "10:17:15 PDT"]
[Termination "killer311 won on time"]

1. d4 {[%clk 0:03:00.9]} 1... d5 {[%clk 0:02:54.1]} 2. c3 {[%clk 0:03:01.1]}
2... Nf6 {[%clk 0:02:51.8]} 3. Nf3 {[%clk 0:03:01]} 3... Bg4 {[%clk 0:02:50]} 4.
Bf4 {[%clk 0:03:01]} 4... Bxf3 {[%clk 0:02:46]} 5. gxf3 {[%clk 0:03:01.9]} 5...
e6 {[%clk 0:02:44.8]} 6. Nd2 {[%clk 0:03:00.1]} 6... Bd6 {[%clk 0:02:43.5]} 7.
Bg3 {[%clk 0:02:57.1]} 7... O-O {[%clk 0:02:41.5]} 8. e4 {[%clk 0:02:54.1]} 8...
Bxg3 {[%clk 0:02:30.4]} 9. hxg3 {[%clk 0:02:53.5]} 9... Nbd7 {[%clk 0:02:05.3]}
10. Qc2 {[%clk 0:02:45.5]} 10... h6 {[%clk 0:02:00.1]} 11. Bd3 {[%clk
0:02:40.6]} 11... e5 {[%clk 0:01:54]} 12. exd5 {[%clk 0:02:32.2]} 12... Nxd5
{[%clk 0:01:52.4]} 13. O-O-O {[%clk 0:02:26.8]} 13... Qf6 {[%clk 0:01:48]} 14.
Be4 {[%clk 0:02:19.2]} 14... c6 {[%clk 0:01:44.8]} 15. dxe5 {[%clk 0:02:16.5]}
15... Nxe5 {[%clk 0:01:43.6]} 16. f4 {[%clk 0:02:16.7]} 16... Ng6 {[%clk
0:01:22.5]} 17. Kb1 {[%clk 0:02:08.2]} 17... Rad8 {[%clk 0:01:21.3]} 18. Nc4
{[%clk 0:02:02.1]} 18... Rfe8 {[%clk 0:01:18.4]} 19. Bxg6 {[%clk 0:01:50.7]}
19... fxg6 {[%clk 0:01:16.7]} 20. Ne5 {[%clk 0:01:49.9]} 20... Rxe5 {[%clk
0:01:10.2]} 21. fxe5 {[%clk 0:01:50.8]} 21... Qxe5 {[%clk 0:01:09.7]} 22. Qxg6
{[%clk 0:01:49.6]} 22... Rf8 {[%clk 0:01:04.5]} 23. Rhe1 {[%clk 0:01:48.3]}
23... Qf5+ {[%clk 0:00:47.7]} 24. Qxf5 {[%clk 0:01:45.7]} 24... Rxf5 {[%clk
0:00:47.7]} 25. Rd2 {[%clk 0:01:45.8]} 25... Kf7 {[%clk 0:00:45.4]} 26. c4
{[%clk 0:01:44.5]} 26... Nb6 {[%clk 0:00:43.2]} 27. b3 {[%clk 0:01:44.6]} 27...
a5 {[%clk 0:00:41.6]} 28. Rde2 {[%clk 0:01:44.7]} 28... Nc8 {[%clk 0:00:30.9]}
29. Re8 {[%clk 0:01:43.9]} 29... Nd6 {[%clk 0:00:27.7]} 30. Rd8 {[%clk
0:01:44.2]} 30... Rf6 {[%clk 0:00:17]} 31. c5 {[%clk 0:01:42.1]} 31... Nb5
{[%clk 0:00:14.7]} 32. Rd7+ {[%clk 0:01:40.8]} 32... Kg6 {[%clk 0:00:14.1]} 33.
Rxb7 {[%clk 0:01:41.5]} 33... Rxf2 {[%clk 0:00:13.2]} 34. Re3 {[%clk 0:01:36.5]}
34... Na3+ {[%clk 0:00:08.1]} 35. Kc1 {[%clk 0:01:36.2]} 35... Rc2+ {[%clk
0:00:07.4]} 36. Kd1 {[%clk 0:01:36.5]} 36... Rxc5 {[%clk 0:00:07.6]} 37. Ree7
{[%clk 0:01:35.1]} 37... Kf5 {[%clk 0:00:06.5]} 38. Rxg7 {[%clk 0:01:35]} 38...
Ke4 {[%clk 0:00:06.4]} 39. Rbd7 {[%clk 0:01:34.3]} 39... Ke3 {[%clk 0:00:05.3]}
40. Rge7+ {[%clk 0:01:33.9]} 40... Kf3 {[%clk 0:00:05.2]} 41. Rd3+ {[%clk
0:01:33.6]} 41... Kg2 {[%clk 0:00:04.1]} 42. Re2+ {[%clk 0:01:32.3]} 42... Kh3
{[%clk 0:00:03.5]} 43. Re4 {[%clk 0:01:31.2]} 43... Nb5 {[%clk 0:00:01.9]} 44.
g4+ {[%clk 0:01:31.3]} 1-0

[Event "*** Titled Tuesday Blitz"]
[Site "Chess.com"]
[Date "2020.10.20"]
[Round "2"]
[White "AndrewDGreen"]
[Black "catzapto"]
[Result "0-1"]
[WhiteElo "2380"]
[BlackElo "2156"]
[TimeControl "180+1"]
[EndTime "10:17:15 PDT"]
[Termination "catzapto won by resignation"]

1. d4 {[%clk 0:03:00.9]} 1... Nf6 {[%clk 0:02:59.7]} 2. Nf3 {[%clk 0:03:00.8]}
2... e6 {[%clk 0:03:00.2]} 3. Bf4 {[%clk 0:02:59.6]} 3... c6 {[%clk 0:02:57.9]}
4. h3 {[%clk 0:02:55.4]} 4... Qb6 {[%clk 0:02:54.8]} 5. Nbd2 {[%clk 0:02:47.4]}
5... Qxb2 {[%clk 0:02:52]} 6. Rb1 {[%clk 0:02:36.3]} 6... Qxa2 {[%clk
0:02:51.6]} 7. e3 {[%clk 0:02:36.2]} 7... Nd5 {[%clk 0:02:49.7]} 8. Bc4 {[%clk
0:02:28.3]} 8... Qa5 {[%clk 0:02:47.7]} 9. Ra1 {[%clk 0:02:25.2]} 9... Qb4
{[%clk 0:02:41]} 10. O-O {[%clk 0:02:05.6]} 10... Nxf4 {[%clk 0:02:40.6]} 11.
exf4 {[%clk 0:02:06.5]} 11... d5 {[%clk 0:02:33]} 12. Bd3 {[%clk 0:02:03.8]}
12... Nd7 {[%clk 0:02:29.2]} 13. Qe2 {[%clk 0:02:02]} 13... Qd6 {[%clk 0:02:23]}
14. f5 {[%clk 0:02:01.1]} 14... Be7 {[%clk 0:02:06.7]} 15. Rfe1 {[%clk
0:01:56.3]} 15... O-O {[%clk 0:02:01.6]} 16. Ne5 {[%clk 0:01:40.2]} 16... Bf6
{[%clk 0:01:31.8]} 17. c4 {[%clk 0:01:32.7]} 17... dxc4 {[%clk 0:01:24.2]} 18.
Ndxc4 {[%clk 0:01:24.3]} 18... Qxd4 {[%clk 0:01:21.5]} 19. Rad1 {[%clk
0:01:18.3]} 19... Nxe5 {[%clk 0:01:14.1]} 20. Nxe5 {[%clk 0:01:16]} 20... Qxe5
{[%clk 0:01:11.5]} 21. Qh5 {[%clk 0:00:57.9]} 21... g6 {[%clk 0:01:11.9]} 22.
Qg4 {[%clk 0:00:46.4]} 22... exf5 {[%clk 0:01:08.2]} 23. Qf3 {[%clk 0:00:42.2]}
23... Qc7 {[%clk 0:01:03.2]} 24. h4 {[%clk 0:00:41.1]} 24... Bxh4 {[%clk
0:00:56.1]} 25. g3 {[%clk 0:00:41.3]} 25... Bf6 {[%clk 0:00:55.7]} 26. Kg2
{[%clk 0:00:41.5]} 26... Be6 {[%clk 0:00:55.9]} 27. Bb1 {[%clk 0:00:35.6]} 27...
Bd5 {[%clk 0:00:54.4]} 28. Rxd5 {[%clk 0:00:36.3]} 28... cxd5 {[%clk 0:00:55.3]}
29. Rh1 {[%clk 0:00:36.1]} 29... d4 {[%clk 0:00:52.7]} 30. Ba2 {[%clk 0:00:35]}
30... Rad8 {[%clk 0:00:50.6]} 31. Qb3 {[%clk 0:00:25.5]} 31... Qc6+ {[%clk
0:00:48.8]} 32. Kg1 {[%clk 0:00:24.6]} 32... d3 {[%clk 0:00:44.7]} 33. Qd1
{[%clk 0:00:24.4]} 33... d2 {[%clk 0:00:41.4]} 34. Rh2 {[%clk 0:00:24.1]} 34...
Qc1 {[%clk 0:00:40.9]} 0-1

[Event "*** Titled Tuesday Blitz"]
[Site "Chess.com"]
[Date "2020.10.20"]
[Round "2"]
[White "ENajer77"]
[Black "dopolian"]
[Result "1-0"]
[WhiteElo "2697"]
[BlackElo "2416"]
[TimeControl "180+1"]
[EndTime "10:17:18 PDT"]
[Termination "ENajer77 won by resignation"]

1. d4 {[%clk 0:01:12]} 1... Nf6 {[%clk 0:02:59]} 2. c4 {[%clk 0:01:11.7]} 2...
c5 {[%clk 0:02:58]} 3. d5 {[%clk 0:01:10.7]} 3... e6 {[%clk 0:02:58.2]} 4. Nc3
{[%clk 0:01:11.2]} 4... exd5 {[%clk 0:02:58.8]} 5. cxd5 {[%clk 0:01:11.6]} 5...
d6 {[%clk 0:02:59.5]} 6. Nf3 {[%clk 0:01:12]} 6... g6 {[%clk 0:03:00]} 7. e4
{[%clk 0:01:11.9]} 7... a6 {[%clk 0:02:58.8]} 8. a4 {[%clk 0:01:11.1]} 8... Bg4
{[%clk 0:02:59.2]} 9. Be2 {[%clk 0:01:10.5]} 9... Bxf3 {[%clk 0:02:57.1]} 10.
Bxf3 {[%clk 0:01:11.4]} 10... Bg7 {[%clk 0:02:57.6]} 11. O-O {[%clk 0:01:11]}
11... O-O {[%clk 0:02:58.2]} 12. Re1 {[%clk 0:01:10.2]} 12... Nbd7 {[%clk
0:02:57.1]} 13. Bf4 {[%clk 0:01:05]} 13... Qe7 {[%clk 0:02:56.9]} 14. Qd2 {[%clk
0:01:03.6]} 14... Ne5 {[%clk 0:02:52.9]} 15. Be2 {[%clk 0:01:03.2]} 15... Ne8
{[%clk 0:02:36.3]} 16. a5 {[%clk 0:01:01.1]} 16... f5 {[%clk 0:02:15.6]} 17.
exf5 {[%clk 0:01:02]} 17... gxf5 {[%clk 0:02:15.8]} 18. Bf1 {[%clk 0:00:50.3]}
18... Qf7 {[%clk 0:02:05.8]} 19. Na4 {[%clk 0:00:46.1]} 19... Ng6 {[%clk
0:01:59.8]} 20. Nb6 {[%clk 0:00:43.2]} 20... Rd8 {[%clk 0:01:57]} 21. Bh6 {[%clk
0:00:42.2]} 21... Nf6 {[%clk 0:01:50.4]} 22. Bxg7 {[%clk 0:00:41.2]} 22... Kxg7
{[%clk 0:01:51.3]} 23. Re6 {[%clk 0:00:36.5]} 23... Ne4 {[%clk 0:01:42.3]} 24.
Qe3 {[%clk 0:00:36.3]} 24... Rfe8 {[%clk 0:01:38.4]} 25. Bc4 {[%clk 0:00:33.4]}
25... Ne5 {[%clk 0:01:31.3]} 26. f3 {[%clk 0:00:27.9]} 26... Nxc4 {[%clk
0:00:45.1]} 27. Nxc4 {[%clk 0:00:28.8]} 27... Rxe6 {[%clk 0:00:45.3]} 28. dxe6
{[%clk 0:00:28.1]} 28... Qxe6 {[%clk 0:00:46.2]} 29. fxe4 {[%clk 0:00:28.3]}
29... Rf8 {[%clk 0:00:36.4]} 30. Qg3+ {[%clk 0:00:23.4]} 30... Kh8 {[%clk
0:00:35.9]} 31. Qxd6 {[%clk 0:00:22.9]} 1-0

[Event "*** Titled Tuesday Blitz"]
[Site "Chess.com"]
[Date "2020.10.20"]
[Round "2"]
[White "Azatic"]
[Black "GOGIEFF"]
[Result "0-1"]
[WhiteElo "2571"]
[BlackElo "2881"]
[TimeControl "180+1"]
[EndTime "10:17:19 PDT"]
[Termination "GOGIEFF won by checkmate"]

1. e4 {[%clk 0:03:00.9]} 1... c5 {[%clk 0:02:58.8]} 2. Nf3 {[%clk 0:03:01.3]}
2... d6 {[%clk 0:02:59]} 3. d4 {[%clk 0:03:00.9]} 3... cxd4 {[%clk 0:02:59.4]}
4. Nxd4 {[%clk 0:03:01.8]} 4... Nf6 {[%clk 0:02:59.9]} 5. Nc3 {[%clk 0:03:01.8]}
5... a6 {[%clk 0:03:00.5]} 6. Be2 {[%clk 0:02:59.4]} 6... Nbd7 {[%clk
0:02:59.9]} 7. O-O {[%clk 0:02:59.3]} 7... e6 {[%clk 0:02:57.8]} 8. Be3 {[%clk
0:02:58]} 8... Qc7 {[%clk 0:02:57.3]} 9. f4 {[%clk 0:02:53.4]} 9... b5 {[%clk
0:02:57.1]} 10. Bf3 {[%clk 0:02:38.7]} 10... Bb7 {[%clk 0:02:57.1]} 11. a3
{[%clk 0:02:38.9]} 11... Be7 {[%clk 0:02:44.7]} 12. Qe2 {[%clk 0:02:37.9]} 12...
O-O {[%clk 0:02:43.5]} 13. Rad1 {[%clk 0:02:37.1]} 13... Rac8 {[%clk 0:02:42.5]}
14. g4 {[%clk 0:02:34.6]} 14... Nc5 {[%clk 0:02:37.1]} 15. Bf2 {[%clk
0:02:22.7]} 15... e5 {[%clk 0:02:37.5]} 16. fxe5 {[%clk 0:02:17.6]} 16... dxe5
{[%clk 0:02:38.4]} 17. Nf5 {[%clk 0:02:18]} 17... Ne6 {[%clk 0:02:38.6]} 18. Be3
{[%clk 0:02:03.3]} 18... Bc5 {[%clk 0:02:36.2]} 19. Kh1 {[%clk 0:01:48.3]} 19...
Nf4 {[%clk 0:02:28.3]} 20. Bxf4 {[%clk 0:01:36.2]} 20... exf4 {[%clk 0:02:29.2]}
21. Nd5 {[%clk 0:01:04.1]} 21... Bxd5 {[%clk 0:02:15.8]} 22. exd5 {[%clk
0:01:05]} 22... Rfe8 {[%clk 0:02:16.3]} 23. Qg2 {[%clk 0:00:29.6]} 23... Bd6
{[%clk 0:02:13]} 24. c3 {[%clk 0:00:26.5]} 24... g6 {[%clk 0:02:09]} 25. Nd4
{[%clk 0:00:22.2]} 25... Re3 {[%clk 0:02:01.7]} 26. Nc2 {[%clk 0:00:22.2]} 26...
Re5 {[%clk 0:01:59.6]} 27. Nd4 {[%clk 0:00:15.5]} 27... Rce8 {[%clk 0:01:57.1]}
28. Nc6 {[%clk 0:00:15.9]} 28... Re3 {[%clk 0:01:55.4]} 29. h3 {[%clk
0:00:16.4]} 29... Ne4 {[%clk 0:01:52.8]} 30. Kh2 {[%clk 0:00:12.8]} 30... Ng5
{[%clk 0:01:47.5]} 31. Rd2 {[%clk 0:00:13.2]} 31... Qb6 {[%clk 0:01:42.3]} 32.
Nd4 {[%clk 0:00:10.7]} 32... a5 {[%clk 0:01:35.9]} 33. h4 {[%clk 0:00:10.9]}
33... Nxf3+ {[%clk 0:01:36.1]} 34. Rxf3 {[%clk 0:00:10.8]} 34... b4 {[%clk
0:01:35.9]} 35. axb4 {[%clk 0:00:08.8]} 35... axb4 {[%clk 0:01:36.8]} 36. Rd3
{[%clk 0:00:07.3]} 36... bxc3 {[%clk 0:01:33.1]} 37. bxc3 {[%clk 0:00:08.2]}
37... Qc5 {[%clk 0:01:32.5]} 38. Kh3 {[%clk 0:00:08.3]} 38... Re1 {[%clk
0:01:26.7]} 39. Rf1 {[%clk 0:00:07.8]} 39... Qc4 {[%clk 0:01:24.7]} 40. Rdf3
{[%clk 0:00:06.7]} 40... R1e3 {[%clk 0:01:24.4]} 41. Rxe3 {[%clk 0:00:06.2]}
41... Rxe3+ {[%clk 0:01:21]} 42. Rf3 {[%clk 0:00:06.7]} 42... Qxc3 {[%clk
0:01:19.4]} 43. Rxe3 {[%clk 0:00:07.2]} 43... fxe3 {[%clk 0:01:19.5]} 44. Ne2
{[%clk 0:00:06.7]} 44... Qe5 {[%clk 0:01:19.6]} 45. Qf3 {[%clk 0:00:06.9]} 45...
Qh2# {[%clk 0:01:19.4]} 0-1

[Event "*** Titled Tuesday Blitz"]
[Site "Chess.com"]
[Date "2020.10.20"]
[Round "2"]
[White "TC2304"]
[Black "mr_gustavo"]
[Result "1-0"]
[WhiteElo "2259"]
[BlackElo "2419"]
[TimeControl "180+1"]
[EndTime "10:17:24 PDT"]
[Termination "TC2304 won by checkmate"]

1. d4 {[%clk 0:03:00.9]} 1... Nf6 {[%clk 0:02:59.6]} 2. Bg5 {[%clk 0:03:00.4]}
2... Ne4 {[%clk 0:02:58]} 3. Bf4 {[%clk 0:03:00.6]} 3... c5 {[%clk 0:02:55.7]}
4. f3 {[%clk 0:03:00.8]} 4... Qa5+ {[%clk 0:02:54.5]} 5. c3 {[%clk 0:03:01.3]}
5... Nf6 {[%clk 0:02:54.3]} 6. d5 {[%clk 0:03:02]} 6... e6 {[%clk 0:02:41.3]} 7.
e4 {[%clk 0:02:59.5]} 7... exd5 {[%clk 0:02:39.7]} 8. exd5 {[%clk 0:02:58.8]}
8... Qb6 {[%clk 0:02:30.8]} 9. Qe2+ {[%clk 0:02:55]} 9... Kd8 {[%clk 0:02:28.9]}
10. Na3 {[%clk 0:02:48.2]} 10... Nxd5 {[%clk 0:02:23.9]} 11. Bxb8 {[%clk
0:02:31.7]} 11... Rxb8 {[%clk 0:02:18]} 12. O-O-O {[%clk 0:02:28.6]} 12... Nf6
{[%clk 0:02:04]} 13. Nc4 {[%clk 0:02:23.2]} 13... Qc7 {[%clk 0:02:02.8]} 14. Nh3
{[%clk 0:02:04.2]} 14... d6 {[%clk 0:01:49.8]} 15. Ng5 {[%clk 0:01:48.8]} 15...
h6 {[%clk 0:00:53.7]} 16. Nxd6 {[%clk 0:01:48.3]} 16... Bxd6 {[%clk 0:00:52.9]}
17. Rxd6+ {[%clk 0:01:47.8]} 17... Qxd6 {[%clk 0:00:50.9]} 18. Nxf7+ {[%clk
0:01:46.9]} 18... Kc7 {[%clk 0:00:51.8]} 19. Nxd6 {[%clk 0:01:47]} 19... Kxd6
{[%clk 0:00:52.7]} 20. Qd2+ {[%clk 0:01:28.2]} 20... Kc6 {[%clk 0:00:40.4]} 21.
a4 {[%clk 0:01:17.7]} 21... a6 {[%clk 0:00:40]} 22. b4 {[%clk 0:01:11.2]} 22...
b6 {[%clk 0:00:10.8]} 23. b5+ {[%clk 0:01:05.9]} 23... axb5 {[%clk 0:00:11.7]}
24. Bxb5+ {[%clk 0:01:04.5]} 24... Kb7 {[%clk 0:00:12.1]} 25. Qd6 {[%clk
0:00:59.4]} 25... Bf5 {[%clk 0:00:04.3]} 26. Re1 {[%clk 0:00:52.2]} 26... Rhd8
{[%clk 0:00:02.1]} 27. Re7+ {[%clk 0:00:52.1]} 27... Bd7 {[%clk 0:00:01.6]} 28.
Bxd7 {[%clk 0:00:41.4]} 28... Ka6 {[%clk 0:00:02.1]} 29. Bb5+ {[%clk 0:00:38.9]}
29... Ka5 {[%clk 0:00:02.3]} 30. Ra7# {[%clk 0:00:39.2]} 1-0

[Event "*** Titled Tuesday Blitz"]
[Site "Chess.com"]
[Date "2020.10.20"]
[Round "2"]
[White "Gerodot71"]
[Black "bascheyaro"]
[Result "0-1"]
[WhiteElo "2461"]
[BlackElo "2726"]
[TimeControl "180+1"]
[EndTime "10:17:26 PDT"]
[Termination "bascheyaro won by checkmate"]

1. d4 {[%clk 0:03:00.9]} 1... Nf6 {[%clk 0:02:57.1]} 2. c4 {[%clk 0:03:01.4]}
2... e6 {[%clk 0:02:57.1]} 3. Nf3 {[%clk 0:03:01.1]} 3... d5 {[%clk 0:02:57.3]}
4. g3 {[%clk 0:03:01.2]} 4... Bb4+ {[%clk 0:02:57.4]} 5. Bd2 {[%clk 0:03:01]}
5... Be7 {[%clk 0:02:57.5]} 6. Bg2 {[%clk 0:03:00.3]} 6... O-O {[%clk
0:02:57.6]} 7. O-O {[%clk 0:03:00.4]} 7... Ne4 {[%clk 0:02:57.8]} 8. Qc2 {[%clk
0:02:57.7]} 8... c6 {[%clk 0:02:57.5]} 9. Nc3 {[%clk 0:02:56.9]} 9... f5 {[%clk
0:02:57]} 10. e3 {[%clk 0:02:47.1]} 10... Nd7 {[%clk 0:02:56.4]} 11. Rab1 {[%clk
0:02:41.8]} 11... a5 {[%clk 0:02:55.1]} 12. a3 {[%clk 0:02:37.7]} 12... Qe8
{[%clk 0:02:43.7]} 13. b4 {[%clk 0:02:32.3]} 13... axb4 {[%clk 0:02:43]} 14.
axb4 {[%clk 0:02:33.2]} 14... Qh5 {[%clk 0:02:39.9]} 15. b5 {[%clk 0:02:27.1]}
15... g5 {[%clk 0:02:37.6]} 16. Ra1 {[%clk 0:02:14.8]} 16... Rxa1 {[%clk
0:02:29.1]} 17. Rxa1 {[%clk 0:02:15.7]} 17... g4 {[%clk 0:02:29.6]} 18. Ne1
{[%clk 0:02:14.3]} 18... Nb6 {[%clk 0:02:17.7]} 19. bxc6 {[%clk 0:02:02.5]}
19... Nxd2 {[%clk 0:02:11.3]} 20. Qxd2 {[%clk 0:01:57.5]} 20... Nxc4 {[%clk
0:02:10.8]} 21. Qc2 {[%clk 0:01:28.3]} 21... bxc6 {[%clk 0:02:10]} 22. Ra7
{[%clk 0:01:27.8]} 22... Bg5 {[%clk 0:02:06.9]} 23. Nd3 {[%clk 0:01:25]} 23...
Nxe3 {[%clk 0:01:54.7]} 24. fxe3 {[%clk 0:01:22.5]} 24... Bxe3+ {[%clk
0:01:54.9]} 25. Kh1 {[%clk 0:01:23]} 25... Bxd4 {[%clk 0:01:54.9]} 26. Rc7
{[%clk 0:01:17.1]} 26... Qe8 {[%clk 0:01:27.2]} 27. Nf4 {[%clk 0:01:03.9]} 27...
e5 {[%clk 0:01:17.7]} 28. Nfxd5 {[%clk 0:00:49]} 28... cxd5 {[%clk 0:01:17.6]}
29. Nxd5 {[%clk 0:00:49.9]} 29... Be6 {[%clk 0:01:17.2]} 30. Re7 {[%clk
0:00:37.6]} 30... Qc8 {[%clk 0:01:03.6]} 31. Qd2 {[%clk 0:00:37.3]} 31... f4
{[%clk 0:00:58.9]} 32. Be4 {[%clk 0:00:27.5]} 32... Rf7 {[%clk 0:00:51.1]} 33.
Qa2 {[%clk 0:00:07.1]} 33... Qc1+ {[%clk 0:00:49.5]} 34. Kg2 {[%clk 0:00:07.6]}
34... Qg1# {[%clk 0:00:49.4]} 0-1

[Event "*** Titled Tuesday Blitz"]
[Site "Chess.com"]
[Date "2020.10.20"]
[Round "2"]
[White "vladislavkovalev"]
[Black "Heineccius"]
[Result "1-0"]
[WhiteElo "2846"]
[BlackElo "2530"]
[TimeControl "180+1"]
[EndTime "10:17:28 PDT"]
[Termination "vladislavkovalev won by resignation"]

1. e4 {[%clk 0:02:56.4]} 1... c5 {[%clk 0:02:58.8]} 2. Nf3 {[%clk 0:02:56.4]}
2... e6 {[%clk 0:02:58.7]} 3. d4 {[%clk 0:02:56.8]} 3... cxd4 {[%clk 0:02:58.8]}
4. Nxd4 {[%clk 0:02:57.7]} 4... a6 {[%clk 0:02:59]} 5. Nc3 {[%clk 0:02:58.5]}
5... Qc7 {[%clk 0:02:58.6]} 6. g3 {[%clk 0:02:58.4]} 6... Bb4 {[%clk 0:02:52.5]}
7. Bd2 {[%clk 0:02:50.6]} 7... Nf6 {[%clk 0:02:51.8]} 8. Bg2 {[%clk 0:02:49.8]}
8... Nc6 {[%clk 0:02:51.2]} 9. Nde2 {[%clk 0:02:43.9]} 9... Be7 {[%clk
0:02:47.4]} 10. O-O {[%clk 0:02:44.3]} 10... d6 {[%clk 0:02:47]} 11. h3 {[%clk
0:02:44.4]} 11... b5 {[%clk 0:02:46.7]} 12. g4 {[%clk 0:02:44.4]} 12... Bb7
{[%clk 0:02:46.3]} 13. Ng3 {[%clk 0:02:44.1]} 13... Ne5 {[%clk 0:02:10.1]} 14.
b3 {[%clk 0:02:33.7]} 14... b4 {[%clk 0:02:05.8]} 15. Nce2 {[%clk 0:02:33.4]}
15... d5 {[%clk 0:01:52.3]} 16. f4 {[%clk 0:02:19.6]} 16... Ned7 {[%clk
0:01:51.4]} 17. e5 {[%clk 0:02:17.2]} 17... Ne4 {[%clk 0:01:51.2]} 18. Nxe4
{[%clk 0:02:16]} 18... dxe4 {[%clk 0:01:51.3]} 19. Be3 {[%clk 0:02:07.6]} 19...
Bc5 {[%clk 0:01:43.9]} 20. Bxc5 {[%clk 0:02:03.7]} 20... Qxc5+ {[%clk 0:01:40]}
21. Kh2 {[%clk 0:02:04.2]} 21... Rd8 {[%clk 0:01:21.8]} 22. Qe1 {[%clk
0:01:56.1]} 22... g5 {[%clk 0:01:20.2]} 23. Rd1 {[%clk 0:01:45.6]} 23... gxf4
{[%clk 0:01:16.5]} 24. Nxf4 {[%clk 0:01:46.5]} 24... Qxe5 {[%clk 0:01:01.1]} 25.
Kh1 {[%clk 0:01:44.6]} 25... a5 {[%clk 0:00:53.9]} 26. Nh5 {[%clk 0:01:42.3]}
26... Bd5 {[%clk 0:00:33.5]} 27. Qh4 {[%clk 0:01:35.6]} 27... h6 {[%clk
0:00:26]} 28. Rde1 {[%clk 0:00:55.9]} 28... Qg5 {[%clk 0:00:22.1]} 29. Qf2
{[%clk 0:00:56]} 29... O-O {[%clk 0:00:19.2]} 30. Bxe4 {[%clk 0:00:53.7]} 30...
Bxe4+ {[%clk 0:00:18.9]} 31. Rxe4 {[%clk 0:00:54.6]} 31... Nc5 {[%clk
0:00:18.7]} 32. Rf4 {[%clk 0:00:47.1]} 32... Rd7 {[%clk 0:00:12.2]} 33. Nf6+
{[%clk 0:00:43.4]} 1-0

[Event "*** Titled Tuesday Blitz"]
[Site "Chess.com"]
[Date "2020.10.20"]
[Round "2"]
[White "GlennTipton"]
[Black "NotFischer"]
[Result "1-0"]
[WhiteElo "2445"]
[BlackElo "2249"]
[TimeControl "180+1"]
[EndTime "10:17:29 PDT"]
[Termination "GlennTipton won on time"]

1. e4 {[%clk 0:03:00.9]} 1... d5 {[%clk 0:02:59.7]} 2. exd5 {[%clk 0:02:59.2]}
2... Nf6 {[%clk 0:02:59.9]} 3. Nf3 {[%clk 0:02:53.9]} 3... Bg4 {[%clk
0:02:59.2]} 4. Be2 {[%clk 0:02:49.3]} 4... Qxd5 {[%clk 0:02:58.8]} 5. d4 {[%clk
0:02:48.7]} 5... Nc6 {[%clk 0:02:58.5]} 6. c4 {[%clk 0:02:48.6]} 6... Qf5 {[%clk
0:02:57.8]} 7. Be3 {[%clk 0:02:44.7]} 7... O-O-O {[%clk 0:02:46.4]} 8. Nbd2
{[%clk 0:02:43]} 8... e5 {[%clk 0:02:43]} 9. d5 {[%clk 0:02:43]} 9... Bxf3
{[%clk 0:02:38.9]} 10. Nxf3 {[%clk 0:02:32]} 10... Bb4+ {[%clk 0:02:36.1]} 11.
Kf1 {[%clk 0:02:27.8]} 11... e4 {[%clk 0:02:35.9]} 12. Nh4 {[%clk 0:02:22.5]}
12... Qe5 {[%clk 0:02:26.6]} 13. Qb3 {[%clk 0:02:21]} 13... Nxd5 {[%clk
0:01:51.5]} 14. cxd5 {[%clk 0:02:20.2]} 14... Rxd5 {[%clk 0:01:51.2]} 15. a3
{[%clk 0:02:07.2]} 15... Be7 {[%clk 0:01:50.5]} 16. Bg4+ {[%clk 0:01:53]} 16...
Kb8 {[%clk 0:01:46.3]} 17. Nf5 {[%clk 0:01:53.4]} 17... Bf6 {[%clk 0:01:44.3]}
18. Ng3 {[%clk 0:01:44.9]} 18... Rb5 {[%clk 0:01:39.4]} 19. Qa4 {[%clk
0:01:30.2]} 19... Rxb2 {[%clk 0:01:34]} 20. Qxe4 {[%clk 0:01:27.3]} 20... Qb5+
{[%clk 0:01:16.5]} 21. Kg1 {[%clk 0:01:22.9]} 21... h5 {[%clk 0:01:08.6]} 22.
Nxh5 {[%clk 0:01:16.2]} 22... Rxh5 {[%clk 0:00:50.2]} 23. Bxh5 {[%clk
0:01:16.3]} 23... Qxh5 {[%clk 0:00:49.6]} 24. g4 {[%clk 0:01:08.1]} 24... Qh3
{[%clk 0:00:35.1]} 25. g5 {[%clk 0:01:03]} 25... Ne5 {[%clk 0:00:19.9]} 26. Qg2
{[%clk 0:01:00.6]} 26... Nf3+ {[%clk 0:00:18.2]} 27. Kf1 {[%clk 0:00:59]} 27...
Qf5 {[%clk 0:00:06.8]} 28. Qg3 {[%clk 0:00:56.3]} 28... Qd3+ {[%clk 0:00:06]}
29. Kg2 {[%clk 0:00:56.4]} 29... Nxg5 {[%clk 0:00:03.5]} 30. Bxg5 {[%clk
0:00:55.6]} 30... Qe4+ {[%clk 0:00:03.4]} 31. Qf3 {[%clk 0:00:48.6]} 1-0

[Event "*** Titled Tuesday Blitz"]
[Site "Chess.com"]
[Date "2020.10.20"]
[Round "2"]
[White "zajka-molotok"]
[Black "sergiochess83"]
[Result "0-1"]
[WhiteElo "2479"]
[BlackElo "2754"]
[TimeControl "180+1"]
[EndTime "10:17:35 PDT"]
[Termination "sergiochess83 won on time"]

1. c4 {[%clk 0:02:55]} 1... e5 {[%clk 0:02:57.9]} 2. Nc3 {[%clk 0:02:53.2]} 2...
Nf6 {[%clk 0:02:56.1]} 3. g3 {[%clk 0:02:51.7]} 3... Bb4 {[%clk 0:02:47.3]} 4.
Bg2 {[%clk 0:02:49.7]} 4... O-O {[%clk 0:02:47.4]} 5. e3 {[%clk 0:02:43.2]} 5...
Bxc3 {[%clk 0:02:43.6]} 6. bxc3 {[%clk 0:02:41.4]} 6... d6 {[%clk 0:02:37]} 7.
Ne2 {[%clk 0:02:40.1]} 7... e4 {[%clk 0:02:21.4]} 8. O-O {[%clk 0:02:29.1]} 8...
Be6 {[%clk 0:02:06]} 9. d3 {[%clk 0:02:21.6]} 9... exd3 {[%clk 0:02:04.8]} 10.
Qxd3 {[%clk 0:02:10.4]} 10... Nc6 {[%clk 0:01:48.8]} 11. Nd4 {[%clk 0:01:59.6]}
11... Bd7 {[%clk 0:01:42.4]} 12. Ba3 {[%clk 0:01:42.8]} 12... Ne5 {[%clk
0:01:25.9]} 13. Qe2 {[%clk 0:01:42.1]} 13... c5 {[%clk 0:01:26.5]} 14. Nb5
{[%clk 0:01:29.1]} 14... Be6 {[%clk 0:01:20.3]} 15. Rfd1 {[%clk 0:01:11.9]}
15... Bxc4 {[%clk 0:01:02.2]} 16. Qb2 {[%clk 0:01:11.1]} 16... Nd3 {[%clk
0:01:02.4]} 17. Qb1 {[%clk 0:01:05.7]} 17... a6 {[%clk 0:01:02.6]} 18. Nxd6
{[%clk 0:00:24.8]} 18... Qxd6 {[%clk 0:01:00.5]} 19. Qxb7 {[%clk 0:00:24.8]}
19... Rad8 {[%clk 0:00:53.6]} 20. Rab1 {[%clk 0:00:18.6]} 20... Rb8 {[%clk
0:00:45.3]} 21. Qa7 {[%clk 0:00:17.2]} 21... Rxb1 {[%clk 0:00:45.1]} 22. Rxb1
{[%clk 0:00:18.1]} 22... h5 {[%clk 0:00:40.6]} 23. h4 {[%clk 0:00:17.1]} 23...
Qe5 {[%clk 0:00:36.7]} 24. Bf1 {[%clk 0:00:15]} 24... Ne4 {[%clk 0:00:28.7]} 25.
Bxd3 {[%clk 0:00:09.5]} 25... Bxd3 {[%clk 0:00:28.4]} 26. Rb7 {[%clk 0:00:10.1]}
26... Qxc3 {[%clk 0:00:25.3]} 0-1